Cogmind - Beta 14 @@@ ROGUE MODE // 2025.03.30 @ 16:13:40 Player: toydarian Result: Destroyed by G-34 Mercenary with Small Laser Performance ------------- Evolutions (0) 0 Regions Visited (1) 200 Robots Destroyed (31) 155 Value Destroyed (478) 478 Prototype IDs (0) 0 Alien Tech Used (0) 0 Bonus (8) 8 TOTAL SCORE: 841 Bonus ------- High Alert Combat Kills 8 Cogmind --------- Core Integrity 0/250 Matter 208/300 Energy 250/250 System Corruption 2% Temperature Cool (12) Movement Rolling (80) Location -10/Materials Parts ------- > --- POWER (1) -------- Ion Engine > --- PROPULSION (2) --- Wheel Wheel > --- UTILITY (2) ------ Small Storage Unit > --- WEAPON (2) ------- Assault Rifle Light Assault Rifle > --- INVENTORY (8) ---- Ion Engine Wheel Large Matter Pod (150) Seismic Detector EM Pulse Gun Light Assault Rifle Peak State ------------ > --- POWER ------------ Ion Engine > --- PROPULSION ------- Wheel Wheel > --- UTILITY ---------- Small Storage Unit Seismic Detector > --- WEAPON ----------- Particle Gun Assault Rifle > --- INVENTORY -------- Ion Engine Wheel Wheel Wheel Large Matter Pod Seismic Detector Assault Rifle Light Assault Rifle [Rating: 8] Favorites ----------- Power Ion Engine Engine Ion Engine Propulsion Wheel Wheel Wheel Utility Small Storage Unit Device Seismic Detector Storage Small Storage Unit Weapon Assault Rifle Energy Gun Medium Laser Ballistic Gun Assault Rifle Build | -11 -10 ------- Run | Yrd Mat Slots Evolved . | . . Power . | . . Propulsion . | . . Utility . | . . Weapon . | . . Parts Attached 17 | 8 9 Power 3 | 1 2 Engine 3 | 1 2 Core . | . . Reactor . | . . Propulsion 6 | 2 4 Treads . | . . Leg . | . . Wheel 6 | 2 4 Hover . | . . Flight . | . . Utility 2 | 2 . Device 1 | 1 . Storage 1 | 1 . Processor . | . . Hackware . | . . Protection . | . . Artifact . | . . Weapon 6 | 3 3 Energy Gun 2 | 1 1 Energy Cannon . | . . Ballistic Gun 4 | 2 2 Ballistic Cannon . | . . Launcher . | . . Special Weapon . | . . Impact Weapon . | . . Slashing Weapon . | . . Piercing Weapon . | . . Special Melee Weapon . | . . Unidentified Prototypes . | . . Parts Lost 4 | . 4 Power . | . . Propulsion 2 | . 2 Utility 1 | . 1 Weapon 1 | . 1 Highest Loss Streak 2 | . 2 To Critical Strikes . | . . Average Slot Usage (%) 95 | . 95 Engine 14 | . 14 Wheel 27 | . 27 Device 10 | . 10 Storage 14 | . 14 Energy Gun 8 | . 8 Ballistic Gun 19 | . 19 Peak Build Rating 8 | 7 8 Average Rating 6 | 6 6 On Entrance 3 | . 7 Naked Turns . | . . Heaviest Build 16 | 15 16 Greatest Support 26 | 26 26 Greatest Overweight (x) 1 | 1 1 Average Overweight (x) . | . . Largest Inventory Capacity 8 | 8 8 Average Capacity 7 | 7 8 Most Carried 8 | 8 8 Average Carried 6 | 5 7 Final Capacity 8 | 8 8 Final Carried 8 | 8 6 Class Distribution -------------------- 72% | Mutant 27% | Scavenger-Mutant Dominant Class ---------------- Scavenger-Mutant | -10/Materials Resources | -11 -10 ----------- Run | Yrd Mat Matter Collected 851 | 493 358 Remotely . | . . Salvage Created 801 | 297 504 Parts 44 | 21 23 Haulers Intercepted . | . . Recyclers Shooed 3 | . 3 Parts Field Recycled . | . . Retrieved Matter . | . . Parts Self-Destructed . | . . Prevented . | . . Kills | -11 -10 ------- Run | Yrd Mat Combat Hostiles Destroyed 15 | . 15 Guns 15 | . 15 Classes Destroyed 5 | 3 2 Worker 6 | 4 2 Tunneler 9 | 9 . Recycler 1 | 1 . Swarmer 5 | . 5 Grunt 10 | . 10 Best Kill Streak 4 | 3 4 Combat Bots Only 3 | . 3 Max Kills in Single Turn 1 | 1 1 Gunslinging . | . . Exploded . | . . Melee . | . . Uniques/NPCs Destroyed . | . . Combat | -11 -10 -------- Run | Yrd Mat Hostile Shots Fired 86 | . 86 Missed 17 | . 17 Damage Taken 743 | . 743 Core 254 | . 254 Absorbed by Shields . | . . Core Remaining (%) 100 | 100 . Volleys Fired 104 | 44 60 Largest 2 | 2 2 Hottest 85 | 70 85 Shots Fired 207 | 88 119 Gun 207 | 88 119 Cannon . | . . Launcher . | . . Special . | . . Kinetic 152 | 71 81 Thermal 55 | 17 38 Explosive . | . . Electromagnetic . | . . Robot Hit Streak 10 | 6 10 Robot Miss Streak 4 | 4 3 Penetration Max . | . . Secondary Targets 1 | . 1 Max Gunslinging Chain 1 | . 1 Shots Hit Robots 128 | 52 76 Core Hits 44 | 15 29 Critical Kills . | . . Critical Parts Destroyed 1 | . 1 Critical Strikes 2 | 1 1 Burn 1 | 1 . Destroy 1 | . 1 Melee Attacks . | . . Impact . | . . Slashing . | . . Piercing . | . . Sneak Attacks . | . . Combat Hostiles . | . . Follow-up Attacks . | . . Damage Inflicted 1648 | 683 965 Guns 1648 | 683 965 Cannons . | . . Explosions . | . . Melee . | . . Ramming . | . . Kinetic 1151 | 536 615 Thermal 497 | 147 350 Explosive . | . . Electromagnetic . | . . Impact . | . . Slashing . | . . Piercing . | . . Highest Corruption 2 | . 2 Average Corruption 2 | . 2 Corruption Purged . | . . Corruption Blocked . | . . Effects 2 | . 2 Energy Discharges 1 | . 1 Weapon Failures 1 | . 1 Overload Shots . | . . Overflow Damage . | . . Projectiles . | . . Explosions . | . . Melee . | . . Knockbacks . | . . Impact . | . . Kinetic . | . . Secondary . | . . Self-Inflicted Damage . | . . Shots . | . . Rammed . | . . Targets Rammed . | . . Kicked . | . . Crushed . | . . Highest Temperature 336 | 27 336 Average Temperature 69 | 10 88 Received Heat Transfer 333 | . 333 Siege Activations . | . . Robots Corrupted . | . . Combat Hostiles . | . . Parts Fried . | . . Impact Corruptions . | . . Robots Melted . | . . Combat Hostiles . | . . Parts Melted 4 | 2 2 Heat Transferred 1443 | 518 925 Parts Sabotaged . | . . Parts Stolen . | . . Parts Stripped . | . . Power Chain Reactions . | . . Alert | -11 -10 ------- Run | Yrd Mat Peak Influence 422 | 70 422 Initial . | . . Average 136 | 34 229 Maximum Alert Level 2 | . 2 Low Security (%) 67 | 100 37 Level 1 29 | . 56 Level 2 2 | . 5 Level 3 . | . . Level 4 . | . . Level 5 . | . . High Security . | . . Max Security . | . . Squads Dispatched 5 | . 5 Investigation 4 | . 4 Extermination . | . . Reinforcement 1 | . 1 Assault . | . . Garrison . | . . Intercept . | . . Searches Triggered . | . . Construction Impeded . | . . Haulers Reinforced . | . . Active Scanning Responses . | . . Cargo Convoy Interrupts . | . . Stealth | -11 -10 --------- Run | Yrd Mat Distress Signals 4 | . 4 Communications Jammed . | . . Distress Signals . | . . Times Spotted 30 | . 30 Peak Tracking Total 7 | . 7 Tactical Retreats 4 | . 4 Traps | -11 -10 ------- Run | Yrd Mat Traps Triggered 4 | . 4 Indirectly . | . . Trap Hack Attempts . | . . Triggered . | . . Disarmed . | . . Reprogrammed . | . . Reused . | . . Traps Extracted . | . . Installed . | . . Triggered . | . . Machines | -11 -10 ---------- Run | Yrd Mat Machines Disabled . | . . Max in Single Turn . | . . Machines Repaired . | . . Machines Dismantled . | . . Machines Sabotaged . | . . Overloaded Fab Kills . | . . Hacking | -11 -10 --------- Run | Yrd Mat Machines Accessed 3 | . 3 Terminals 3 | . 3 Fabricators . | . . Repair Stations . | . . Recycling Units . | . . Scanalyzers . | . . Garrison Access . | . . Total Hacks 7 | . 7 Successful 2 | . 2 Failed 5 | . 5 Catastrophic . | . . Database Lockouts . | . . Manual 7 | . 7 Terminals 7 | . 7 Fabricators . | . . Repair Stations . | . . Recycling Units . | . . Scanalyzers . | . . Garrison Access . | . . Terminal Hacks . | . . Fabricator Hacks . | . . Repair Station Hacks . | . . Recycling Unit Hacks . | . . Scanalyzer . | . . Garrison Access Hacks . | . . Unauthorized Hacks 2 | . 2 Terminals 2 | . 2 Botnet 2 | . 2 Fabricators . | . . Repair Stations . | . . Recycling Units . | . . Scanalyzers . | . . Garrison Access . | . . Data Cores Recovered . | . . Used . | . . Hacking Detections 2 | . 2 Full Trace Events 2 | . 2 Feedback Events . | . . Feedback Blocked . | . . Robot Schematics Acquired . | . . Robots Built . | . . Authchips . | . . Time . | . . Total Robot Build Rating . | . . Part Schematics Acquired . | . . Parts Built . | . . Authchips . | . . Time . | . . Total Part Build Rating . | . . Parts Repaired . | . . Time . | . . Parts Recycled . | . . Recycled Matter . | . . Retrieved Matter . | . . Retrieved Components . | . . Parts Scanalyzed . | . . Part Schematics Acquired . | . . Parts Damaged . | . . Bothacking | -11 -10 ------------ Run | Yrd Mat Used RIF Installer . | . . Robots Hacked . | . . Non-combat . | . . Combat . | . . Robot Hacks Applied . | . . Relay Couplers Released . | . . Fabnet Peak Effective % . | . . Robots Rewired . | . . Allies Hacked . | . . Hacks Repelled . | . . Allies | -11 -10 -------- Run | Yrd Mat Total Allies . | . . Largest Group . | . . Highest-Rated Group . | . . Highest-Rated Ally . | . . Total Orders . | . . Ally Attacks . | . . Total Damage . | . . Kills . | . . Allies Corrupted . | . . Allies Melted . | . . Intel | -11 -10 ------- Run | Yrd Mat Robot Analysis Total . | . . Derelict Logs Recovered . | . . Drone Launches . | . . Drone Recoveries . | . . Exploration | -11 -10 ------------- Run | Yrd Mat Turns Passed 841 | 403 438 Spaces Moved 523 | 283 240 Core 3 | 3 . Treads . | . . Legs . | . . Wheels 520 | 280 240 Hover . | . . Flight . | . . Fastest Speed 50 | 50 80 Average Speed 85 | 89 81 Slowest Speed 95 | 95 95 Overloaded Moves . | . . Propulsion Burnouts . | . . Robots Hopped . | . . Cave-ins Triggered . | . . Exploration Rate (%) 26 | 5 47 Regions Visited 1 Branch Regions . Pre-discovered Areas . | . . Known Exits Taken . | . . Unknown Exits Taken 1 | 1 . Scrap Searched . | . . Spaces Dug . | . . Terrain Destroyed . | . . Melee . | . . Projectile . | . . AOE . | . . Terrain Rammed . | . . Walls Destroyed . | . . Machines Disabled . | . . Actions | -11 -10 --------- Run | Yrd Mat Total 713 | 346 367 Wait 47 | . 47 Move 522 | 282 240 Hop . | . . Pick Up 14 | 10 4 Fast Attach 7 | 7 . Attach 3 | . 3 Detach . | . . Swap 7 | 1 6 Drop 9 | 2 7 Fire 104 | 44 60 Melee . | . . Ram . | . . Kick . | . . Crush . | . . Escape Stasis . | . . Rewire . | . . Trap . | . . Miscellaneous . | . . Route ------- -11/Scrapyard -10/Materials (discovered 1 exit: [*Mat]) History --------- Turn | Location | Event 17 | -11/Scrapyard | Discovered new exit (range 15) 404 | -11/Scrapyard | Entered Materials 408 | -10/Materials | Build established: Mutant 654 | -10/Materials | Core integrity fell below 50% 727 | -10/Materials | Discovered new exit (range 14) 821 | -10/Materials | Core integrity fell below 20% 842 | -10/Materials | Destroyed by G-34 Mercenary with Small Laser Last Messages --------------- 00731_ System corrupted: Energy discharge (-57). 00733_ S-10 Pest destroyed. 00739_ Acquired 10 matter. 00741_ Acquired 2 matter. 00749_ T-07 Excavator is excavating. 00750_ Acquired Lgt. Assault Rifle. 00754_ Connecting with Terminal... 00772_ Dropped Particle Gun. 00772_ Acquired EM Pulse Gun. 00788_ Triggered Alarm Trap. 00788_ An alarm sounds. 00788_ ALERT: Alarm triggered, dispatching investigation squad. 00803_ G-34 Mercenary destroyed. 00806_ G-34 Mercenary suffers critical hit (Destroy). 00806_ Destroyed Aluminum Leg. 00812_ System corrupted: Assault Rifle jammed. 00815_ G-34 Mercenary destroyed. 00816_ Assault Rifle destroyed. 00833_ G-34 Mercenary destroyed. 00833_ Switching to secondary target: G-34 Mercenary. Map ----- +----------------------------------------------------+ | ?????# """"""" #??????? | | ?????# """"""" #??????? | | ?????# """"""" +??????? | | ?????# """"""" #??????? | | ?????# """"""" #??????? | | ####### #???????? | | # # % #???????? | | # """ +% """"""" ##??????? | | # """ # """"""" "#??????? | | # """ # """"""" T#??????? | | # # """"""" "#??????? | | # """ # """"""" ##??????? | | # """ # #???????? | | # """ # #???????? | | # [# #???????? | | # ! # #???????? | | # # #???????? | | # # ???????? | | #####+# ### < #???????? | | ????# #?# #???????? | | ????# #?#######+##???????? | | ????# #??????????????????? | | ????# #??????????????????? | | ????#wg #??????????????????? | | ??###g#####?????????????????? | | # @=[ #?????????????????? | | #![ #?????????????????? | | #!! #?????????????????? | | #[! #?????????????????? | | ###########?????????????????? | | | | | | | | | | | | | | | | | | | | | | | | | | | | | | | | | | | | | | | | | +----------------------------------------------------+ Best States ------------- Heat Dissipation 25 Energy Generation 10 Energy Capacity 250 Matter Stores 300 Matter Capacity 300 Sight Range 16 Terrain Scan Density 10 Evasion (%) 44 Item Schematics ----------------- None Robot Schematics ------------------ None Fabricated ------------ Nothing Alien Tech Used ----------------- None Achievements -------------- None Challenges ------------ None Game ------ Seed ArcConstructBroadsword Manual? 0 Play Time 00:10:27 Cumulative 148.5 hours Start 2025.03.30 @ 16:04:58 End 2025.03.30 @ 16:13:40 Sessions 1 Manual Loads 0 Difficulty Rogue Special Mode None Game No. 149 Rogue 142 Adventurer 0 Explorer 7 Win Type - Total 2 Types 2/0/0/0/0/0/0/0/0 Lore% 52 Gallery% 53 Achievement% 46 Wizard Run 0 Options --------- Layout 0 ASCII 0 Keyboard 1 Movement Arrows Keybinds 0 Fullscreen 1 Font 24/Smallcaps Map View 76x50 Zoom Use 0% Tactical HUD 1 Map Filters NONE Filters NONE Steam 1 RUN: c87670bb-9527-472e-84f4-509ecf216dcf